bitfinex-derivatives/quotes_BTCF0:USTF0_20250609
["timestamp","ask_amount","ask_price","bid_price","bid_amount"]
[1749467729179,0.9932582,107360.0,107350.0,0.90463711]
[1749467729382,0.6324582,107360.0,107350.0,1.19279272]
[1749467729571,0.73995551,107360.0,107350.0,1.19279272]
[1749467729772,0.6324582,107360.0,107350.0,1.19279272]
[1749467729974,0.74035551,107360.0,107350.0,1.19279272]
[1749467730174,0.6324582,107360.0,107350.0,1.19279272]
[1749467730481,0.20563551,107360.0,107350.0,1.19579272]
[1749467730682,0.20563551,107360.0,107350.0,1.29461166]
[1749467730879,0.0977382,107360.0,107350.0,1.29461166]
[1749467731185,0.5315382,107360.0,107350.0,1.29461166]
[1749467731384,0.0977382,107360.0,107350.0,1.00645605]
[1749467731584,0.5314582,107360.0,107350.0,1.00645605]
[1749467731985,0.5314582,107360.0,107350.0,1.4675203]
[1749467732379,0.63935551,107360.0,107350.0,1.4675203]
[1749467732788,0.63935551,107360.0,107350.0,1.4655203]
[1749467732985,0.63935551,107360.0,107350.0,1.4695203]
[1749467733685,0.56643551,107360.0,107350.0,1.00845605]
[1749467733888,0.74131551,107360.0,107350.0,1.00845605]
[1749467735090,0.74131551,107360.0,107350.0,1.02368258]
[1749467735791,0.6334182,107360.0,107350.0,1.02368258]
[1749467736090,0.74131551,107360.0,107350.0,1.02368258]
[1749467736293,0.63887551,107360.0,107350.0,1.02368258]
[1749467739487,0.4374682,107360.0,107350.0,1.02368258]
[1749467739789,0.0045482,107360.0,107350.0,1.49237989]
[1749467739983,0.0041482,107360.0,107350.0,1.49237989]
[1749467740180,0.0045482,107360.0,107350.0,1.59237989]
[1749467740386,0.0045482,107360.0,107350.0,1.96772518]
[1749467740588,0.0045482,107360.0,107350.0,1.85982787]
[1749467741383,0.0045482,107360.0,107350.0,1.859851]
[1749467741695,0.0045482,107360.0,107350.0,1.959851]
[1749467741894,0.20563551,107360.0,107350.0,1.499051]
[1749467742293,0.20563551,107360.0,107350.0,1.96011525]
[1749467742594,0.20563551,107360.0,107350.0,1.58474683]
[1749467743092,0.20563551,107360.0,107350.0,1.9601404]
[1749467743985,0.20563551,107360.0,107350.0,1.49907615]
[1749467744593,0.11244551,107360.0,107350.0,1.85987615]
[1749467744795,0.0045482,107360.0,107350.0,1.85987615]
[1749467744993,0.0041482,107360.0,107350.0,1.85987615]
[1749467745194,0.0045482,107360.0,107350.0,1.49907615]
[1749467745390,0.0045482,107360.0,107350.0,1.85987615]
[1749467747290,0.0045482,107360.0,107350.0,1.48448258]
[1749467747490,0.11244551,107360.0,107350.0,1.12368258]
[1749467747689,0.0045482,107360.0,107350.0,1.12368258]
[1749467747885,0.0041482,107360.0,107350.0,1.48448258]
[1749467748297,0.0045482,107360.0,107350.0,1.58448258]
[1749467749398,0.0045482,107360.0,107350.0,1.48448258]
[1749467749788,0.0045482,107360.0,107350.0,1.58448258]
[1749467750596,0.0045482,107360.0,107350.0,1.95985282]
[1749467750898,0.0045482,107360.0,107350.0,1.49905282]
[1749467750899,0.11244551,107360.0,107350.0,1.49905282]
[1749467751492,0.11244551,107360.0,107350.0,1.78781071]
[1749467751795,0.0045482,107360.0,107350.0,1.98113778]
[1749467752297,0.0045482,107360.0,107350.0,1.48448258]
[1749467752597,0.0045482,107360.0,107350.0,1.85985282]
[1749467752598,0.0041482,107360.0,107350.0,1.85985282]
[1749467752890,0.0045482,107360.0,107350.0,1.85985282]
[1749467753289,0.0045482,107360.0,107350.0,1.85685282]
[1749467753496,0.0045482,107360.0,107350.0,1.50005282]
[1749467753699,0.0045482,107360.0,107350.0,1.86085282]
[1749467753998,0.0045482,107360.0,107350.0,1.50205282]
[1749467754392,0.1907463,107360.0,107350.0,1.50205282]
[1749467754600,0.0045482,107360.0,107350.0,1.50205282]
[1749467754792,0.0045482,107360.0,107350.0,1.12668258]
[1749467756102,0.75263361,107360.0,107350.0,1.04638258]
[1749467756295,0.75263361,107360.0,107350.0,1.33440845]
[1749467756492,0.75263361,107360.0,107350.0,1.15019285]
[1749467756692,0.91183361,107360.0,107350.0,1.33640835]
[1749467756896,0.91183361,107360.0,107350.0,1.42275272]
[1749467757096,0.91183361,107360.0,107350.0,1.40752619]
[1749467758397,0.5303782,107360.0,107350.0,1.40752619]
[1749467758593,0.4367882,107360.0,107350.0,1.49192619]
[1749467758794,0.4371882,107360.0,107350.0,1.49192619]
[1749467759604,0.0045482,107360.0,107350.0,1.49192619]
[1749467760102,0.0045482,107360.0,107350.0,1.50653851]
[1749467760801,0.0977382,107360.0,107350.0,1.50653851]
[1749467761002,0.0977382,107360.0,107350.0,1.13116827]
[1749467761606,0.0977382,107360.0,107350.0,1.59223252]
[1749467761800,0.20563551,107360.0,107350.0,1.59223252]
[1749467761996,0.75263361,107360.0,107350.0,1.59223252]
[1749467762302,0.20563551,107360.0,107350.0,1.4311201]
[1749467762498,0.20563551,107360.0,107350.0,1.5922201]
[1749467762804,0.0977382,107360.0,107350.0,1.5922201]
[1749467763197,0.0977382,107360.0,107350.0,1.12815585]
[1749467763405,0.0977382,107360.0,107350.0,1.14473433]
[1749467763604,0.20563551,107360.0,107350.0,1.14473433]
[1749467763903,0.20563551,107360.0,107350.0,1.13115585]
[1749467763904,0.39183361,107360.0,107350.0,1.13115585]
[1749467764203,0.39183361,107360.0,107350.0,1.34582949]
[1749467764403,0.55303361,107360.0,107350.0,1.34582949]
[1749467764702,0.8059363,107360.0,107350.0,1.15961409]
[1749467765003,0.91383361,107360.0,107350.0,1.15961409]
[1749467765300,0.9085363,107360.0,107350.0,1.15961409]
[1749467765492,1.12433092,107360.0,107350.0,1.34995208]
[1749467765699,1.01643361,107360.0,107350.0,1.34995208]
[1749467765902,0.9085363,107360.0,107350.0,1.34695208]
[1749467766100,1.01643361,107360.0,107350.0,1.05779515]
[1749467766300,1.01643361,107360.0,107350.0,1.05879515]
[1749467766695,1.01643361,107360.0,107350.0,1.05679515]
[1749467766901,1.01643361,107360.0,107350.0,1.05579515]
[1749467767206,1.01643361,107360.0,107350.0,0.95579515]
[1749467767406,1.12433092,107360.0,107350.0,0.95579515]
[1749467767903,1.01643361,107360.0,107350.0,1.24473961]
[1749467768305,1.01643361,107360.0,107350.0,0.86896597]
[1749467769107,1.11488292,107360.0,107350.0,0.86896597]
[1749467769410,1.65028292,107360.0,107350.0,1.07119062]
[1749467769808,1.44915361,107360.0,107350.0,0.96846156]
[1749467770008,1.44875361,107360.0,107350.0,0.76623691]
[1749467770212,1.44915361,107360.0,107350.0,0.76623691]
[1749467770806,1.44915361,107360.0,107350.0,1.05500633]
[1749467771302,0.91383361,107360.0,107350.0,1.05500633]
[1749467771607,1.26279551,107360.0,107350.0,1.05500633]
[1749467771807,0.72763551,107360.0,107350.0,1.05500633]
[1749467772010,1.26275551,107360.0,107350.0,1.05500633]
[1749467772208,1.26275551,107360.0,107350.0,1.21770633]
[1749467772818,1.44895361,107360.0,107350.0,1.21770633]
[1749467773112,0.83023551,107360.0,107350.0,1.21770633]
[1749467773316,1.26271551,107360.0,107350.0,1.21770633]
[1749467773514,1.26271551,107360.0,107350.0,0.92993691]
[1749467773723,0.83023551,107360.0,107350.0,1.30771055]
[1749467774319,1.26259551,107360.0,107350.0,1.30771055]
[1749467774910,1.10099551,107360.0,107350.0,1.30771055]
[1749467775116,1.10139551,107360.0,107350.0,1.30771055]
[1749467776819,1.28759361,107360.0,107350.0,1.22621055]
[1749467777008,1.45179361,107360.0,107350.0,1.22621055]
[1749467777214,1.26559551,107360.0,107350.0,1.22621055]
[1749467777520,1.45179361,107360.0,107350.0,1.22621055]
[1749467778121,1.45179361,107360.0,107350.0,1.31011055]
[1749467778322,1.26559551,107360.0,107350.0,1.31011055]
[1749467778616,0.3653482,107360.0,107350.0,1.31011055]
[1749467778824,0.9926182,107360.0,107350.0,1.13643365]
[1749467779020,0.9922982,107360.0,107350.0,1.13643365]
[1749467779224,0.9926982,107360.0,107350.0,0.93433691]
[1749467779717,0.4585382,107360.0,107350.0,1.14477171]
[1749467779919,0.8904982,107360.0,107350.0,1.24477171]
[1749467780120,0.8904982,107360.0,107350.0,1.1368744]
[1749467780321,0.8904982,107360.0,107350.0,1.24477171]
[1749467780322,0.3653482,107360.0,107350.0,1.24477171]
[1749467780621,0.3653482,107360.0,107350.0,1.1348744]
[1749467780825,0.3653482,107360.0,107350.0,1.1378744]
[1749467781723,0.0045482,107360.0,107350.0,1.1378744]
[1749467782022,0.0045482,107360.0,107350.0,1.2388744]
[1749467782023,0.0041482,107360.0,107350.0,1.2388744]
[1749467782219,0.0045482,107360.0,107350.0,1.2388744]
[1749467782911,0.0041482,107360.0,107350.0,2.13937171]
[1749467783222,0.0045482,107360.0,107350.0,2.51514535]
[1749467784217,0.0045482,107360.0,107350.0,2.60043596]
[1749467784618,0.0045482,107360.0,107350.0,2.49253865]
[1749467784820,0.0045482,107360.0,107350.0,2.49353865]
[1749467785013,0.0041482,107360.0,107350.0,2.49553865]
[1749467785219,0.0045482,107360.0,107350.0,2.49553865]
[1749467785724,0.0045482,107360.0,107350.0,2.58869065]
[1749467786117,0.0045482,107360.0,107350.0,2.1276264]
[1749467786317,0.0045482,107360.0,107350.0,2.23552371]
[1749467786520,0.0045482,107360.0,107350.0,2.6972118]
[1749467786926,0.0041482,107360.0,107350.0,2.6972118]
[1749467787226,0.0045482,107360.0,107350.0,2.6972118]
[1749467787422,0.0041482,107360.0,107350.0,2.6972118]
[1749467787624,0.0045482,107360.0,107350.0,2.6972118]
[1749467787927,0.0041482,107360.0,107350.0,2.6972118]
[1749467788127,0.0045482,107360.0,107350.0,2.23563941]
[1749467788528,0.0041482,107360.0,107350.0,2.58563941]
[1749467788721,0.0045482,107360.0,107350.0,2.58563941]
[1749467789229,1e-07,107360.0,107350.0,2.4776264]
[1749467789416,0.3608,107420.0,107380.0,0.1]
[1749467789617,0.1860618,107440.0,107420.0,0.0465221]
[1749467789816,0.21005731,107430.0,107420.0,0.76274027]
[1749467790021,0.21005731,107430.0,107420.0,0.28631091]
[1749467790022,0.92892411,107430.0,107420.0,0.28631091]
[1749467790221,1.01402411,107430.0,107420.0,0.38321701]
[1749467790425,1.01402411,107430.0,107420.0,0.72383452]
[1749467790722,0.1860941,107420.0,107410.0,0.10384965]
[1749467790927,1.5465297,107410.0,107390.0,1.02353638]
[1749467791126,0.48933611,107400.0,107390.0,1.39147665]
[1749467791322,0.64743611,107400.0,107390.0,1.19759163]
[1749467791625,0.64743611,107400.0,107390.0,0.52306607]
[1749467791626,1.11613342,107400.0,107390.0,0.52306607]
[1749467791831,1.54893342,107400.0,107390.0,0.52306607]
[1749467792022,1.89204542,107400.0,107390.0,0.52306607]
[1749467792225,1.89204542,107400.0,107360.0,1.86626368]
[1749467792226,0.0465365,107390.0,107360.0,1.55430877]
[1749467792428,0.76277542,107370.0,107360.0,0.91971748]
[1749467792730,0.76277542,107370.0,107360.0,1.22631516]
[1749467792926,0.84087542,107370.0,107360.0,0.97542007]
[1749467793233,0.94802941,107370.0,107360.0,0.40142618]
[1749467793525,0.94802941,107370.0,107360.0,0.40542618]
[1749467793728,0.94802941,107370.0,107360.0,0.69791972]
[1749467793928,1.02822941,107370.0,107360.0,0.62436242]
[1749467794124,1.02822941,107370.0,107360.0,0.35393624]
[1749467794324,1.27822941,107370.0,107360.0,0.35393624]
[1749467794527,0.1861982,107360.0,107350.0,0.00014027]
[1749467794827,0.1862502,107330.0,107320.0,0.72097489]
[1749467795028,1.19058751,107330.0,107320.0,0.6085298]
[1749467795229,1.19339238,107330.0,107320.0,0.42954909]
[1749467795422,1.53656839,107330.0,107320.0,0.38314889]
[1749467795620,1.53656839,107330.0,107320.0,0.38322153]
[1749467795822,1.00092839,107330.0,107320.0,0.56948913]
[1749467796024,1.61759238,107330.0,107320.0,0.70832283]
[1749467796227,1.71076839,107330.0,107320.0,0.52205523]
[1749467796421,1.96116839,107330.0,107320.0,0.23205523]
[1749467796624,1.6862676,107320.0,107310.0,0.00014027]
[1749467796830,1.6862676,107320.0,107310.0,0.31014027]
[1749467796831,2.15776978,107320.0,107310.0,0.31014027]
[1749467797030,2.50095378,107320.0,107310.0,0.54351913]
[1749467797235,2.50095378,107320.0,107310.0,0.23224213]
[1749467797531,2.50095378,107320.0,107310.0,0.17346249]
[1749467797834,2.50095378,107320.0,107310.0,0.42327175]
[1749467798223,2.50195378,107320.0,107310.0,0.42327175]
[1749467798735,3.03863378,107320.0,107310.0,0.42327175]
[1749467798935,3.04063378,107320.0,107310.0,0.42327175]
[1749467799138,3.04063378,107320.0,107300.0,0.00061027]
[1749467799139,0.1862849,107310.0,107300.0,0.00061027]
[1749467799336,0.186337,107280.0,107270.0,0.7711001]
[1749467799628,0.724177,107280.0,107270.0,1.3048001]
[1749467799822,1.9687004,107320.0,107270.0,1.22995871]
[1749467799823,1.5495706,107320.0,107270.0,1.22995871]
[1749467800023,1.503,107320.0,107310.0,0.75778708]
[1749467800332,1.501,107320.0,107310.0,1.24926316]
[1749467800633,0.0014,107320.0,107310.0,1.72413805]
[1749467800831,0.3608,107350.0,107310.0,1.77760475]
[1749467801133,1.5,107330.0,107320.0,1.00989158]
[1749467801433,0.1862502,107330.0,107320.0,0.7652676]
[1749467801638,0.1862502,107330.0,107320.0,1.01195257]
[1749467801935,1.19010827,107340.0,107330.0,0.1862502]
[1749467802133,1.14314697,107340.0,107330.0,0.509]
[1749467802433,1.14314697,107340.0,107330.0,0.64908442]
[1749467802628,0.00014027,107340.0,107330.0,0.92850955]
[1749467802823,0.54954027,107340.0,107330.0,0.92850955]
[1749467803030,0.00014027,107340.0,107330.0,1.40001173]
[1749467803237,0.55102027,107340.0,107330.0,1.50118804]
[1749467803431,0.55062027,107340.0,107330.0,1.50118804]
[1749467803637,0.00154027,107340.0,107330.0,1.50118804]
[1749467803838,0.44442027,107340.0,107330.0,1.50118804]
[1749467804728,0.63065307,107340.0,107330.0,1.20423566]
[1749467805031,0.58965307,107340.0,107330.0,0.74325935]
[1749467805236,0.58965307,107340.0,107330.0,1.10405935]
[1749467805543,0.58965307,107340.0,107330.0,0.74325935]
[1749467805733,0.58965307,107340.0,107330.0,1.10405935]
[1749467806036,0.5470328,107340.0,107330.0,0.74325935]
[1749467806241,1.0978328,107340.0,107330.0,0.58425935]
[1749467806739,1.0998328,107340.0,107330.0,0.58425935]
[1749467807125,1.21053498,107340.0,107330.0,0.58425935]
[1749467807330,1.30370298,107340.0,107330.0,0.58425935]
[1749467808240,1.30670298,107340.0,107330.0,0.58325935]
[1749467809132,1.30870298,107340.0,107330.0,0.58325935]
[1749467809939,1.30870298,107340.0,107330.0,0.76950955]
[1749467810138,1.30870298,107340.0,107330.0,0.58325935]
[1749467810638,1.30870298,107340.0,107330.0,0.76950955]
[1749467810845,1.31275958,107340.0,107330.0,0.76950955]
[1749467811032,1.31275958,107340.0,107330.0,0.58325935]
[1749467811340,1.31207958,107340.0,107330.0,0.58325935]
[1749467811736,0.76255958,107340.0,107330.0,0.58325935]
[1749467811936,1.31211958,107340.0,107330.0,0.58325935]
[1749467812133,1.52211958,107340.0,107330.0,0.51327655]
[1749467812441,1.52211958,107340.0,107330.0,0.32663213]
[1749467812939,0.6118574,107340.0,107330.0,0.32663213]
[1749467813242,1.1615774,107340.0,107330.0,0.65296419]
[1749467813442,1.27267958,107340.0,107330.0,0.46671399]
[1749467813643,1.27319958,107340.0,107330.0,0.62821399]
[1749467813839,1.27329958,107340.0,107330.0,0.81446419]
[1749467814237,1.27319958,107340.0,107330.0,0.81446419]
[1749467814438,1.27279958,107340.0,107330.0,0.81446419]
[1749467814931,1.26879958,107340.0,107330.0,0.62821399]
[1749467815135,1.27179958,107340.0,107330.0,0.62821399]
[1749467815336,1.27179958,107340.0,107330.0,0.46671399]
[1749467815539,1.28549958,107340.0,107330.0,0.46671399]
[1749467815738,1.28249958,107340.0,107330.0,0.46671399]
[1749467815941,1.28449958,107340.0,107330.0,0.46671399]
[1749467818735,1.53449958,107340.0,107330.0,0.19008483]
[1749467818934,0.1862675,107320.0,107310.0,0.32915273]
[1749467819136,1.20784968,107320.0,107310.0,0.57915273]
[1749467819336,1.56864968,107320.0,107310.0,0.81181617]
[1749467819538,1.66183368,107320.0,107310.0,0.81181617]
[1749467819937,1.66183368,107320.0,107310.0,0.67231898]
[1749467820335,1.67553368,107320.0,107310.0,0.67231898]
[1749467821035,1.66183368,107320.0,107310.0,0.67231898]
[1749467821231,1.66183368,107320.0,107310.0,0.59191898]
[1749467821539,1.66183368,107320.0,107310.0,0.59291898]
[1749467822538,1.66283368,107320.0,107310.0,0.38331578]
[1749467822738,0.1862849,107310.0,107300.0,0.25374285]
[1749467822940,1.08002708,107310.0,107300.0,0.59374285]
[1749467823141,2.67321908,107310.0,107300.0,0.57998396]
[1749467823444,0.186337,107280.0,107270.0,0.3863515]
[1749467823645,1.20767918,107280.0,107270.0,0.47642009]
[1749467823840,1.20767918,107280.0,107270.0,0.61560543]
[1749467824046,1.20767918,107280.0,107270.0,0.70882379]
[1749467824346,1.20767918,107280.0,107270.0,0.70882669]
[1749467824546,1.19254735,107280.0,107270.0,0.70882669]
[1749467824751,1.19254735,107280.0,107270.0,0.52247229]
[1749467825049,1.19454735,107280.0,107270.0,0.52247229]
[1749467825648,1.21023138,107280.0,107270.0,0.52247229]
[1749467826339,1.21023138,107280.0,107270.0,0.60977229]
[1749467826744,1.21023138,107280.0,107270.0,0.68297071]
[1749467827146,1.21023138,107280.0,107270.0,0.86932511]
[1749467827346,0.64392517,107280.0,107270.0,0.86932511]
[1749467827651,1.08708517,107280.0,107270.0,0.86932511]
[1749467827947,1.08668517,107280.0,107270.0,0.86932511]
[1749467828245,1.08708517,107280.0,107270.0,0.86932511]
[1749467828448,1.08708517,107280.0,107270.0,0.96022511]
[1749467829251,1.19778735,107280.0,107270.0,0.77387071]
[1749467829547,1.19778735,107280.0,107270.0,0.96022511]
[1749467829754,1.08708517,107280.0,107270.0,0.96022511]
[1749467830046,0.53740517,107280.0,107270.0,0.96022511]
[1749467830251,1.08760517,107280.0,107270.0,0.96022511]
[1749467831057,0.53740517,107280.0,107270.0,0.96022511]
[1749467831349,1.08768517,107280.0,107270.0,0.96022511]
[1749467831551,1.08728517,107280.0,107270.0,0.96022511]
[1749467831751,1.08768517,107280.0,107270.0,0.96022511]
[1749467832845,0.72668517,107280.0,107270.0,1.32102511]
[1749467833343,0.72696517,107280.0,107270.0,1.42102511]
[1749467833944,0.17660517,107280.0,107270.0,1.42102511]
[1749467834150,0.7391771,107280.0,107270.0,1.42102511]
[1749467834343,0.55284,107280.0,107270.0,1.42102511]
[1749467834548,0.739057,107280.0,107270.0,1.42102511]
[1749467834748,0.55272,107280.0,107270.0,1.42102511]
[1749467834955,0.738657,107280.0,107270.0,1.42102511]
[1749467835350,0.42224,107310.0,107280.0,0.0465821]
[1749467835351,0.01315786,107310.0,107280.0,0.0465821]
[1749467835544,0.3648566,107320.0,107300.0,0.1397185]
[1749467835746,0.2794795,107290.0,107280.0,0.19269062]
[1749467836068,0.11070218,107290.0,107280.0,0.4939]
[1749467836349,0.91652,107290.0,107280.0,0.82038494]
[1749467836555,0.66706218,107290.0,107280.0,0.91354994]
[1749467836750,0.55636,107290.0,107280.0,0.91355634]
[1749467836951,0.66658218,107290.0,107280.0,0.91355634]
[1749467837150,0.66698218,107290.0,107280.0,0.72721934]
[1749467837355,0.66698218,107290.0,107280.0,0.91355644]
[1749467837555,0.66698218,107290.0,107280.0,0.72721934]
[1749467837556,0.85330188,107290.0,107280.0,0.72721934]
[1749467837754,1.21410188,107290.0,107280.0,0.72721934]
[1749467838055,1.21594188,107290.0,107280.0,0.72721934]
[1749467838644,1.21794188,107290.0,107280.0,0.72721934]
[1749467839756,1.31114988,107290.0,107280.0,0.72721934]
[1749467839949,1.48374988,107290.0,107280.0,0.72721934]
[1749467840253,1.48374988,107290.0,107280.0,0.41318796]
[1749467841250,1.48374988,107290.0,107250.0,0.7895688]
[1749467841251,0.1863718,107260.0,107250.0,0.5235882]
[1749467841561,1.21343398,107260.0,107250.0,0.5376892]
[1749467841851,1.63583398,107260.0,107250.0,0.63089887]
[1749467842353,1.63583398,107260.0,107250.0,0.44462248]
[1749467842554,1.63583398,107260.0,107250.0,0.71741168]
[1749467842755,1.5251318,107260.0,107250.0,0.71741168]
[1749467842954,1.63583398,107260.0,107250.0,0.53102248]
[1749467843259,1.63583398,107260.0,107250.0,0.71741168]
[1749467843460,1.63583398,107260.0,107250.0,0.79166627]
[1749467843653,1.5251318,107260.0,107250.0,0.60527707]
[1749467843955,0.6087718,107260.0,107250.0,0.79466627]
[1749467844155,1.1640118,107260.0,107250.0,1.04570952]
[1749467844354,1.1640118,107260.0,107250.0,1.04470952]
[1749467844556,1.1644118,107260.0,107250.0,1.13530952]
[1749467844760,1.1644118,107260.0,107250.0,1.02460734]
[1749467845456,1.14927699,107260.0,107250.0,1.02460734]
[1749467845663,0.96290519,107260.0,107250.0,1.02460734]
[1749467845865,1.14927699,107260.0,107250.0,1.02460734]
[1749467846058,1.14887699,107260.0,107250.0,1.02460734]
[1749467846256,1.14887699,107260.0,107250.0,1.03742157]
[1749467846257,1.13979603,107260.0,107250.0,1.03742157]
[1749467846457,1.13979603,107260.0,107250.0,1.02460734]
[1749467846857,1.14019603,107260.0,107250.0,1.02460734]
[1749467849961,0.95450423,107260.0,107250.0,1.02460734]
[1749467850161,1.11968746,107260.0,107250.0,1.02460734]
[1749467850560,0.93319566,107260.0,107250.0,1.02460734]
[1749467850759,0.37739566,107260.0,107250.0,1.02460734]
[1749467850962,0.36094027,107270.0,107260.0,0.1863718]
[1749467851259,0.91662027,107270.0,107260.0,0.81127398]
[1749467851452,0.91662027,107270.0,107260.0,0.95068967]
[1749467851655,0.91702027,107270.0,107260.0,1.04392541]
[1749467852957,0.46906027,107270.0,107260.0,1.04392541]
[1749467853262,0.91694027,107270.0,107260.0,1.35037892]
[1749467853464,0.91654027,107270.0,107260.0,1.35037892]
[1749467853763,0.55614027,107270.0,107260.0,1.71117892]
[1749467854162,0.55594027,107270.0,107260.0,1.71117892]
[1749467854363,0.55594027,107270.0,107260.0,1.60047674]
[1749467854665,0.55594027,107270.0,107260.0,1.71117892]
[1749467855370,0.55999687,107270.0,107260.0,1.71117892]
[1749467855667,0.190411,107270.0,107260.0,1.30928446]
[1749467855968,1.106491,107270.0,107260.0,1.13485626]
[1749467856161,1.106491,107270.0,107260.0,0.93322323]
[1749467856562,1.106491,107270.0,107260.0,0.74685143]
[1749467856764,0.745691,107270.0,107260.0,0.93322323]
[1749467858069,0.745691,107270.0,107260.0,1.40472541]
[1749467858070,0.745371,107270.0,107260.0,1.40472541]
[1749467858572,0.745411,107270.0,107260.0,1.29402323]
[1749467859362,0.745411,107270.0,107260.0,1.49565626]
[1749467860158,0.5590566,107270.0,107260.0,1.29402323]
[1749467860359,0.5590566,107270.0,107260.0,1.49565626]
[1749467860670,0.745411,107270.0,107260.0,1.49565626]
[1749467861970,0.745411,107270.0,107260.0,1.13485626]
[1749467862462,0.5590566,107270.0,107260.0,1.13485626]
[1749467862662,0.745411,107270.0,107260.0,1.13485626]
[1749467863965,0.5590566,107270.0,107260.0,1.13485626]
[1749467864169,0.5590566,107270.0,107260.0,1.49565626]
[1749467864369,0.745411,107270.0,107260.0,1.49565626]
[1749467864669,0.5590566,107270.0,107260.0,1.49565626]
[1749467865068,0.5602966,107270.0,107260.0,1.49565626]
[1749467865570,0.5606966,107270.0,107260.0,1.49565626]
[1749467865962,0.54556421,107270.0,107260.0,1.49565626]
[1749467866471,0.54962081,107270.0,107260.0,1.49565626]
[1749467866770,0.5603766,107270.0,107260.0,1.49565626]
[1749467867268,0.5603366,107270.0,107260.0,1.49565626]
[1749467867965,0.5602166,107270.0,107260.0,1.60635844]
[1749467868471,0.5602166,107270.0,107260.0,1.40472541]
[1749467868670,0.5600166,107270.0,107260.0,1.6072265]
[1749467868972,0.55552,107280.0,107270.0,0.2795246]
[1749467869170,0.55552,107280.0,107270.0,1.37071378]
[1749467869472,0.55552,107280.0,107270.0,1.51051675]
[1749467869765,0.27963777,107290.0,107280.0,0.186337]
[1749467869973,0.83495777,107290.0,107280.0,1.34978209]
[1749467870164,0.83495777,107290.0,107280.0,1.49014038]
[1749467870363,0.83495777,107290.0,107280.0,1.39701305]
[1749467870573,0.83495777,107290.0,107280.0,0.74806796]
[1749467871077,0.00014027,107290.0,107280.0,1.40590714]
[1749467871275,0.00014027,107290.0,107280.0,1.79802539]
[1749467871571,0.5324617,107300.0,107290.0,0.1863197]
[1749467871769,0.5324617,107300.0,107290.0,1.12192188]
[1749467871966,0.9783017,107300.0,107290.0,1.65265092]
[1749467872161,0.4229417,107300.0,107290.0,1.65265092]
[1749467872468,0.4229417,107300.0,107290.0,1.7458519]
[1749467872875,0.55570027,107310.0,107300.0,0.1863023]
[1749467873064,0.11006027,107310.0,107300.0,0.94780448]
[1749467873370,0.11006027,107310.0,107300.0,1.66936187]
[1749467873564,0.42244,107340.0,107330.0,0.1862502]
[1749467873772,0.53236,107340.0,107330.0,1.15956451]
[1749467874066,0.97832,107340.0,107330.0,1.18954436]
[1749467874276,0.97832,107340.0,107330.0,1.48838848]
[1749467874277,0.97872,107340.0,107330.0,1.48838848]
[1749467874564,0.97832,107340.0,107330.0,1.3776863]
[1749467874773,0.97872,107340.0,107330.0,1.48838848]
[1749467874957,0.97832,107340.0,107330.0,1.48838848]
[1749467875157,0.93872,107340.0,107330.0,1.48838848]
[1749467875372,0.93872,107340.0,107330.0,1.68970551]
[1749467875565,0.55628,107340.0,107330.0,1.68970551]
[1749467875970,0.55628,107340.0,107330.0,1.85530551]
[1749467876366,0.0004,107340.0,107330.0,1.85530551]
[1749467876570,0.11000417,107360.0,107350.0,0.1862156]
[1749467876872,8.417e-05,107360.0,107350.0,1.23986295]
[1749467877074,8.417e-05,107360.0,107350.0,1.40546295]
[1749467877275,8.417e-05,107360.0,107350.0,1.69992887]
[1749467877763,0.00048417,107360.0,107350.0,1.69992887]
[1749467877961,8.417e-05,107360.0,107350.0,1.77622899]
[1749467878165,0.00048417,107360.0,107350.0,1.93571196]
[1749467878366,0.53224,107380.0,107370.0,0.1861809]
[1749467878567,1.1638435,107380.0,107370.0,0.98768308]
[1749467878773,1.1638435,107380.0,107370.0,1.3995661]
[1749467878972,1.1638435,107380.0,107370.0,1.38201281]
[1749467879373,0.97768,107380.0,107370.0,1.2756157]
[1749467879676,1.1638435,107380.0,107370.0,1.2756157]
[1749467880067,0.97808,107380.0,107370.0,1.2756157]
[1749467880263,0.97808,107380.0,107370.0,1.47956239]
[1749467880264,0.0004,107380.0,107370.0,1.47956239]
[1749467880472,0.10988,107390.0,107380.0,0.1861635]
[1749467880670,0.10988,107390.0,107380.0,1.16486568]
[1749467880869,0.10988,107390.0,107380.0,1.40326226]
[1749467881100,9.49e-05,107400.0,107390.0,0.1861462]
[1749467881369,9.49e-05,107400.0,107390.0,1.2341462]
[1749467881569,0.1862238,107400.0,107390.0,0.92585139]
[1749467881778,0.74132598,107400.0,107390.0,0.56323893]
[1749467881974,0.82452598,107400.0,107390.0,0.56323893]
[1749467882165,0.91002598,107400.0,107390.0,0.46323893]
[1749467882371,1.80873798,107400.0,107390.0,0.46323893]
[1749467882573,1.80873798,107400.0,107390.0,0.32312287]
[1749467884076,1.6980358,107400.0,107390.0,0.32312287]
[1749467884378,1.4480358,107400.0,107390.0,0.32312287]
[1749467884777,1.4520924,107400.0,107390.0,0.32312287]
[1749467884974,1.4520924,107400.0,107390.0,0.35791287]
[1749467886083,1.4540924,107400.0,107390.0,0.35791287]
[1749467886684,0.1861635,107380.0,107370.0,0.18629681]
[1749467886991,1.57322568,107380.0,107370.0,0.53648476]
[1749467887169,1.5517235,107380.0,107370.0,0.53648476]
[1749467887375,1.5517235,107380.0,107370.0,0.6296163]
[1749467887376,1.6421235,107380.0,107370.0,0.6296163]
[1749467887577,1.6421235,107380.0,107370.0,0.4434354]
[1749467888081,1.6421235,107380.0,107370.0,0.629617]
[1749467888587,1.0873635,107380.0,107370.0,0.629617]
[1749467889083,1.6421235,107380.0,107370.0,0.716817]
[1749467889275,1.6445235,107380.0,107370.0,0.716817]
[1749467889980,1.0877635,107380.0,107370.0,0.716817]
[1749467890281,1.6444035,107380.0,107370.0,0.716817]
[1749467890485,1.6444035,107380.0,107370.0,0.82751918]
[1749467890486,1.1943235,107380.0,107370.0,0.82751918]
[1749467890676,1.1943235,107380.0,107370.0,0.803717]
[1749467890877,0.8342435,107380.0,107370.0,0.803717]
[1749467891074,1.1946435,107380.0,107370.0,0.803717]
[1749467891375,1.1950435,107380.0,107370.0,0.716817]
[1749467891585,0.8342435,107380.0,107370.0,0.716817]
[1749467891771,1.1950435,107380.0,107370.0,0.716817]
[1749467891975,0.5493635,107380.0,107370.0,0.804717]
[1749467892175,0.1885635,107380.0,107370.0,0.804717]
[1749467892477,0.7436035,107380.0,107370.0,0.804717]
[1749467892678,0.1885635,107380.0,107370.0,0.804717]
[1749467892883,0.7416035,107380.0,107370.0,0.804717]
[1749467893087,0.7436035,107380.0,107370.0,0.804717]
[1749467894878,0.7436035,107380.0,107370.0,0.6185354]
[1749467894879,1.1044035,107380.0,107370.0,0.6185354]
[1749467895086,1.1920035,107380.0,107370.0,0.716817]
[1749467895381,1.2809035,107380.0,107370.0,0.4434354]
[1749467895581,1.2809035,107380.0,107370.0,0.629617]
[1749467895784,1.2809035,107380.0,107370.0,0.4434354]
[1749467897880,1.2809035,107380.0,107370.0,0.629617]
[1749467898779,0.7464435,107380.0,107370.0,0.713017]
[1749467898979,0.5489635,107380.0,107370.0,0.797117]